bitfinex/quotes_BTCUSD_20240730
["timestamp","ask_amount","ask_price","bid_price","bid_amount"]
[1722308990395,0.00083,66651.0,66650.0,1.92173]
[1722308990537,0.00083,66651.0,66650.0,2.31651958]
[1722308992016,0.00183,66651.0,66650.0,2.31751958]
[1722308992538,0.00083,66651.0,66650.0,2.30451958]
[1722308992738,0.00283,66651.0,66650.0,2.31051958]
[1722308992984,0.00283,66651.0,66650.0,1.96826108]
[1722308993746,0.00283,66651.0,66650.0,1.62316108]
[1722308994359,0.00283,66651.0,66650.0,1.16010108]
[1722308995356,0.00183,66651.0,66650.0,1.15910108]
[1722308995470,0.00183,66651.0,66650.0,1.17281372]
[1722308995471,0.00283,66651.0,66650.0,1.17281372]
[1722308995828,0.00183,66651.0,66650.0,1.16781372]
[1722308996461,0.00283,66651.0,66650.0,1.17281372]
[1722308997418,0.02636068,66651.0,66650.0,1.17281372]
[1722308997975,0.00283,66651.0,66650.0,1.17281372]
[1722308999122,0.0026494,66651.0,66650.0,1.17281372]
[1722309000534,0.0026494,66651.0,66650.0,1.10621372]
[1722309000733,0.0026494,66651.0,66650.0,1.02651372]
[1722309001158,0.02618031,66651.0,66650.0,1.02651372]
[1722309001359,0.0026494,66651.0,66650.0,1.02651372]
[1722309004599,0.0026494,66651.0,66650.0,0.61015]
[1722309004800,0.21331346,66651.0,66650.0,0.01]
[1722309004996,0.19994826,66651.0,66650.0,0.01]
[1722309005248,0.32588827,66651.0,66650.0,0.01]
[1722309005470,0.21361484,66651.0,66650.0,0.01]
[1722309005666,0.21261484,66651.0,66650.0,0.005]
[1722309005825,0.21161484,66651.0,66649.0,0.120031]
[1722309006021,0.05399886,66650.0,66646.0,0.0015542]
[1722309006225,0.16629607,66649.0,66647.0,0.120034]
[1722309006425,0.05399886,66648.0,66647.0,0.120034]
[1722309006800,0.0602,66646.0,66645.0,0.120038]
[1722309006990,0.0602,66646.0,66645.0,0.360116]
[1722309006991,0.1500387,66646.0,66645.0,0.360116]
[1722309007118,0.0602,66650.0,66649.0,0.120031]
[1722309007321,0.0026494,66651.0,66649.0,0.120031]
[1722309007322,0.0026494,66651.0,66650.0,0.12003]
[1722309007522,0.0026494,66651.0,66650.0,0.51072304]
[1722309007523,0.10615253,66651.0,66650.0,0.51072304]
[1722309007774,0.08168832,66651.0,66650.0,0.60015]
[1722309007990,0.01431598,66651.0,66650.0,0.36009]
[1722309008327,0.0006494,66651.0,66650.0,0.60015]
[1722309008583,0.0006494,66651.0,66650.0,0.36009]
[1722309008731,0.02418273,66651.0,66650.0,0.36009]
[1722309009154,0.0006494,66651.0,66650.0,0.36009]
[1722309009389,0.0036494,66651.0,66650.0,0.6601662]
[1722309009564,0.0036494,66651.0,66650.0,0.60015]
[1722309009760,0.0076494,66651.0,66650.0,0.60015]
[1722309010003,0.16020215,66651.0,66650.0,0.60015]
[1722309010207,0.16020215,66651.0,66650.0,0.67875]
[1722309010383,0.16383428,66651.0,66650.0,0.67875]
[1722309010582,0.16383428,66651.0,66650.0,0.746625]
[1722309010818,0.16683428,66651.0,66650.0,0.67875]
[1722309011203,0.01728153,66651.0,66650.0,0.67875]
[1722309011385,0.0056494,66651.0,66650.0,0.67875]
[1722309011595,0.0056494,66651.0,66650.0,0.60015]
[1722309012007,0.0036494,66651.0,66650.0,0.60015]
[1722309012405,0.02718194,66651.0,66650.0,0.60015]
[1722309012729,0.02718194,66651.0,66650.0,0.668025]
[1722309012932,0.02418194,66651.0,66650.0,0.668025]
[1722309013228,0.0056494,66651.0,66650.0,0.668025]
[1722309013430,0.0006494,66651.0,66650.0,0.668025]
[1722309013768,0.0036494,66651.0,66650.0,0.668025]
[1722309014219,0.0036494,66651.0,66650.0,0.60015]
[1722309016087,0.01724862,66651.0,66650.0,0.60015]
[1722309016685,0.01724862,66651.0,66650.0,1.05524304]
[1722309016895,0.01724862,66651.0,66650.0,1.13384304]
[1722309017513,0.0036494,66651.0,66650.0,1.13384304]
[1722309018230,0.0036494,66651.0,66650.0,1.13484304]
[1722309019229,0.0006494,66651.0,66650.0,1.13484304]
[1722309019564,0.0026494,66651.0,66650.0,1.13484304]
[1722309025777,0.0026494,66651.0,66650.0,1.37490304]
[1722309026110,0.0026494,66651.0,66650.0,1.39790304]
[1722309026337,0.0026494,66651.0,66650.0,1.49994777]
[1722309026872,0.0026494,66651.0,66650.0,1.71494777]
[1722309027267,0.0026494,66651.0,66650.0,1.95500777]
[1722309027673,0.0026494,66651.0,66650.0,1.71494777]
[1722309027674,0.0006494,66651.0,66650.0,1.71494777]
[1722309027974,0.0016494,66651.0,66650.0,1.71694777]
[1722309028217,0.02517955,66651.0,66650.0,1.71594777]
[1722309028557,0.02617955,66651.0,66650.0,1.72194777]
[1722309028764,0.0026494,66651.0,66650.0,1.72194777]
[1722309029363,0.00846,66653.0,66651.0,0.11]
[1722309029364,4e-07,66653.0,66651.0,0.11]
[1722309029626,4e-07,66653.0,66652.0,0.82060997]
[1722309029763,4e-07,66653.0,66652.0,1.39915977]
[1722309029970,4e-07,66653.0,66652.0,1.62921177]
[1722309030167,4e-07,66653.0,66652.0,1.86926377]
[1722309030762,4e-07,66653.0,66652.0,1.86991079]
[1722309032071,0.02352831,66653.0,66652.0,1.86991079]
[1722309032277,0.0010004,66653.0,66652.0,1.87691079]
[1722309032477,0.0010004,66653.0,66652.0,1.48106704]
[1722309032929,0.0020004,66653.0,66652.0,1.59506704]
[1722309033711,0.0020004,66653.0,66652.0,1.49506704]
[1722309033939,0.0020004,66653.0,66652.0,1.02069262]
[1722309034658,0.0020004,66653.0,66652.0,1.00669262]
[1722309034659,0.0010004,66653.0,66652.0,1.00669262]
[1722309034873,0.0010004,66653.0,66652.0,1.02069262]
[1722309035103,0.0010004,66653.0,66652.0,1.01369262]
[1722309035293,0.0010004,66653.0,66652.0,1.16359262]
[1722309035510,0.0020004,66653.0,66652.0,1.18659262]
[1722309035666,0.0255294,66653.0,66652.0,1.42664462]
[1722309036661,0.0255294,66653.0,66652.0,1.52836104]
[1722309036980,0.0020004,66653.0,66652.0,1.52836104]
[1722309037182,0.0020004,66653.0,66652.0,1.53834748]
[1722309037360,0.0020004,66653.0,66652.0,1.52834748]
[1722309037901,4e-07,66653.0,66652.0,1.89839948]
[1722309038305,4e-07,66653.0,66652.0,1.90039948]
[1722309038515,0.00846,66666.0,66652.0,1.90039948]
[1722309038516,0.00846,66666.0,66665.0,1.080027]
[1722309038680,0.00846,66666.0,66665.0,1.60506004]
[1722309039136,0.00846,66666.0,66665.0,1.24505104]
[1722309039338,0.00846,66666.0,66665.0,1.39006004]
[1722309039554,0.00846,66666.0,66665.0,1.32936004]
[1722309039717,0.00846,66666.0,66665.0,1.08935404]
[1722309039921,0.03198582,66666.0,66665.0,1.08935404]
[1722309040320,0.03198582,66666.0,66665.0,1.32936004]
[1722309040532,0.00846,66666.0,66665.0,1.32936004]
[1722309040909,0.01046,66666.0,66665.0,1.32936004]
[1722309041116,0.01046,66666.0,66665.0,1.08935404]
[1722309042755,0.01046,66666.0,66665.0,1.06635404]
[1722309042981,0.01046,66666.0,66665.0,1.08935404]
[1722309044401,0.01046,66666.0,66665.0,0.99968725]
[1722309044600,0.03398602,66666.0,66665.0,0.99968725]
[1722309045836,0.01046,66666.0,66665.0,0.99968725]
[1722309047584,0.01046,66666.0,66665.0,1.02268725]
[1722309048336,0.01046,66666.0,66665.0,0.99968725]
[1722309048747,0.01046,66666.0,66665.0,0.99065404]
[1722309049152,0.03398644,66666.0,66665.0,0.99065404]
[1722309049651,0.01046,66666.0,66665.0,0.99065404]
[1722309049851,0.0150663,66669.0,66668.0,0.359992]
[1722309050039,0.09041346,66669.0,66668.0,0.359992]
[1722309050237,0.09041346,66669.0,66668.0,0.119997]
[1722309050475,0.09041346,66669.0,66668.0,0.359992]
[1722309051054,0.09541346,66669.0,66668.0,0.360992]
[1722309051988,0.0200663,66669.0,66668.0,0.360992]
[1722309052655,0.0230663,66669.0,66668.0,0.360992]
[1722309052916,0.04659275,66669.0,66668.0,0.360992]
[1722309053427,0.04659275,66669.0,66668.0,0.001]
[1722309053776,0.06041579,66669.0,66668.0,0.120997]
[1722309055562,0.0230663,66669.0,66668.0,0.120997]
[1722309055986,0.0230663,66669.0,66668.0,0.001]
[1722309056180,0.0230663,66669.0,66668.0,0.120997]
[1722309056787,0.09841346,66669.0,66668.0,0.001]
[1722309056989,0.32009501,66669.0,66668.0,0.001]
[1722309057387,0.35634295,66669.0,66668.0,0.001]
[1722309057553,0.24405825,66669.0,66668.0,0.001]
[1722309057950,0.36405325,66669.0,66668.0,0.001]
[1722309058299,0.35637381,66669.0,66668.0,0.001]
[1722309058506,0.24405825,66669.0,66668.0,0.001]
[1722309058719,0.35638676,66669.0,66668.0,0.001]
[1722309058925,0.24405825,66669.0,66668.0,0.001]
[1722309059126,0.35638744,66669.0,66668.0,0.001]
[1722309059518,0.24405825,66669.0,66668.0,0.001]
[1722309059741,0.42050674,66669.0,66668.0,0.001]
[1722309059947,0.30816552,66669.0,66668.0,0.001]
[1722309060521,0.66815152,66669.0,66668.0,0.001]
[1722309060660,1.09720842,66669.0,66668.0,0.001]
[1722309061986,1.09476303,66669.0,66668.0,0.001]
[1722309062186,0.85477203,66669.0,66668.0,0.001]
[1722309062388,0.9896192,66669.0,66668.0,0.001]
[1722309063985,1.62387334,66669.0,66668.0,0.001]
[1722309064187,1.64072923,66669.0,66668.0,0.001]
[1722309064388,1.56549779,66669.0,66668.0,0.001]
[1722309064542,1.97612183,66669.0,66668.0,0.001]
[1722309065173,1.97645469,66669.0,66668.0,0.001]
[1722309065343,1.97645469,66669.0,66666.0,2.98954]
[1722309065344,0.869993,66667.0,66666.0,2.98954]
[1722309065666,2.04594125,66667.0,66666.0,2.98954]
[1722309067044,2.05994125,66667.0,66666.0,2.98954]
[1722309067674,2.0974735,66667.0,66666.0,2.99054]
[1722309068198,2.02212634,66667.0,66666.0,2.99054]
[1722309068405,1.84193272,66667.0,66666.0,2.99054]
[1722309068607,1.78333662,66667.0,66666.0,2.99054]
[1722309068752,1.76333662,66667.0,66666.0,2.99054]
[1722309068949,1.3726443,66667.0,66666.0,2.99054]
[1722309069720,1.3815807,66667.0,66666.0,2.99054]
[1722309071258,1.29734408,66667.0,66666.0,2.99054]
[1722309071512,1.39044301,66667.0,66666.0,2.99054]
[1722309071774,1.30612995,66667.0,66666.0,2.99054]
[1722309071972,1.54071047,66667.0,66666.0,2.99054]
[1722309072455,0.62938811,66667.0,66666.0,2.99054]
[1722309072603,0.11733685,66667.0,66666.0,2.99054]
[1722309073213,0.17746143,66667.0,66666.0,2.99054]
[1722309073494,0.10333685,66667.0,66666.0,2.99054]
[1722309073712,0.11733685,66667.0,66666.0,2.99054]
[1722309073908,0.47733385,66667.0,66666.0,2.99054]
[1722309074029,0.54191076,66667.0,66666.0,2.99054]
[1722309074230,0.11733685,66667.0,66666.0,2.99054]
[1722309074430,0.21554319,66667.0,66666.0,2.98954]
[1722309074631,0.22854319,66667.0,66666.0,2.99054]
[1722309074837,0.22854319,66667.0,66666.0,3.110541]
[1722309074838,0.06424876,66667.0,66666.0,3.110541]
[1722309075038,0.05053225,66667.0,66666.0,3.110541]
[1722309075260,0.20843968,66667.0,66666.0,3.109541]
[1722309075459,0.09623415,66667.0,66666.0,3.109541]
[1722309075823,0.09623415,66667.0,66666.0,2.98954]
[1722309075950,0.10923415,66667.0,66666.0,2.99054]
[1722309076286,0.22143968,66667.0,66666.0,2.99054]
[1722309077471,0.22143968,66667.0,66666.0,3.110541]
[1722309077668,0.20743968,66667.0,66666.0,3.110541]
[1722309078247,0.20751621,66667.0,66666.0,3.110541]
[1722309078669,0.08141151,66667.0,66666.0,3.653645]
[1722309078853,0.03653225,66667.0,66666.0,3.893647]
[1722309079265,0.02353225,66667.0,66666.0,3.892647]
[1722309079622,0.03653225,66667.0,66666.0,3.893647]
[1722309079942,0.03653225,66667.0,66666.0,2.99054]
[1722309080143,0.14353125,66667.0,66666.0,2.98954]
[1722309080362,0.30878645,66667.0,66666.0,2.98954]
[1722309080549,0.51272257,66667.0,66666.0,2.98954]
[1722309080727,0.49449092,66667.0,66666.0,2.98954]
[1722309080907,0.50825459,66667.0,66666.0,2.98954]
[1722309081128,0.19290943,66667.0,66666.0,2.98954]
[1722309081330,0.14676267,66667.0,66666.0,2.98954]
[1722309081708,0.52306186,66667.0,66666.0,2.98954]
[1722309081877,0.55442544,66667.0,66666.0,2.98954]
[1722309083214,0.30442744,66667.0,66666.0,2.98954]
[1722309083331,0.22500914,66667.0,66666.0,2.98954]
[1722309083530,0.30867002,66667.0,66666.0,2.98954]
[1722309084371,0.20267102,66667.0,66666.0,2.99054]
[1722309084771,0.11811481,66667.0,66666.0,2.99054]
[1722309084987,0.08675123,66667.0,66666.0,2.99054]
[1722309085194,0.03076367,66667.0,66666.0,3.729145]
[1722309085398,0.017,66667.0,66666.0,3.729145]
[1722309085588,0.017,66667.0,66666.0,3.239605]
[1722309086086,0.014,66667.0,66666.0,3.239605]
[1722309086309,0.0158963,66669.0,66668.0,0.359992]
[1722309086457,0.0158963,66669.0,66668.0,0.599987]
[1722309087285,0.06077842,66669.0,66668.0,0.599987]
[1722309087538,0.0158963,66669.0,66668.0,0.599987]
[1722309087690,0.03942327,66669.0,66666.0,2.6386]
[1722309087890,0.0673293,66668.0,66667.0,0.119999]
[1722309088091,0.0673293,66668.0,66666.0,2.6386]
[1722309088092,0.10675257,66669.0,66666.0,2.6386]
[1722309088296,0.10675257,66669.0,66668.0,0.359992]
[1722309088476,0.03942327,66669.0,66668.0,0.599987]
[1722309088677,0.08431428,66669.0,66668.0,0.599987]
[1722309088883,0.04442327,66669.0,66668.0,0.599987]
[1722309089086,0.08931428,66669.0,66668.0,0.599987]
[1722309089300,0.04242327,66669.0,66668.0,0.359992]
[1722309089475,0.10975257,66669.0,66668.0,0.599987]
[1722309089679,0.09131613,66669.0,66668.0,0.600987]
[1722309089877,0.08431613,66669.0,66668.0,0.599987]
[1722309090182,0.04142327,66669.0,66668.0,0.599987]
[1722309090378,0.04142327,66669.0,66668.0,0.839982]
[1722309090786,0.04542327,66669.0,66668.0,0.839982]
[1722309091549,0.04542327,66669.0,66668.0,0.599987]
[1722309091921,0.09031705,66669.0,66668.0,0.599987]
[1722309092123,0.03942327,66669.0,66668.0,0.599987]
[1722309092304,0.04242327,66669.0,66668.0,0.89082004]
[1722309092514,0.02171576,66669.0,66668.0,0.89082004]
[1722309092858,0.06360954,66669.0,66668.0,1.13081504]
[1722309093020,0.06660954,66669.0,66668.0,1.13081504]
[1722309093356,0.06360954,66669.0,66668.0,0.89082004]
[1722309093506,0.06060954,66669.0,66668.0,0.89082004]
[1722309093734,0.01571576,66669.0,66668.0,1.14071564]
[1722309093932,0.01571576,66669.0,66668.0,1.14171564]
[1722309094138,0.01571576,66669.0,66668.0,1.16471564]
[1722309095493,0.01571576,66669.0,66668.0,1.16489616]
[1722309095693,0.0392409,66669.0,66668.0,1.16489616]
[1722309095869,0.0392409,66669.0,66668.0,1.16471564]
[1722309096071,0.01571576,66669.0,66668.0,1.16471564]
[1722309097967,0.01571576,66669.0,66668.0,1.40471064]
[1722309098456,0.01571576,66669.0,66668.0,1.16471564]
[1722309099050,0.01571576,66669.0,66668.0,1.14171564]
[1722309099457,0.03924059,66669.0,66668.0,1.14171564]
[1722309100062,0.03924059,66669.0,66668.0,1.14071564]
[1722309100452,0.01571576,66669.0,66668.0,1.14371564]
[1722309103876,0.03924078,66669.0,66668.0,1.14371564]
[1722309104091,0.03924078,66669.0,66668.0,0.603987]
[1722309104296,0.03924078,66669.0,66668.0,0.363992]
[1722309104503,0.03924078,66669.0,66668.0,0.603987]
[1722309104902,0.01571576,66669.0,66668.0,0.603987]
[1722309107960,0.03924196,66669.0,66668.0,0.843982]
[1722309108238,0.03924196,66669.0,66668.0,0.926182]
[1722309108414,0.01571576,66669.0,66668.0,1.13751504]
[1722309108751,0.01571576,66669.0,66668.0,1.59251004]
[1722309108979,0.01571576,66669.0,66668.0,1.37551504]
[1722309109179,0.01571576,66669.0,66668.0,1.61551004]
[1722309109386,0.01571576,66669.0,66668.0,1.37551504]
[1722309109797,0.01571576,66669.0,66668.0,1.61551004]
[1722309111509,0.03924055,66669.0,66668.0,1.61551004]
[1722309112658,0.03924055,66669.0,66668.0,1.40051004]
[1722309112876,0.03924055,66669.0,66668.0,1.16051504]
[1722309113451,0.03924055,66669.0,66668.0,1.15951504]
[1722309114060,0.04024055,66669.0,66668.0,1.16751504]
[1722309115801,0.01671576,66669.0,66668.0,1.16751504]
[1722309117502,0.01671576,66669.0,66668.0,1.26840024]
[1722309118876,0.04023986,66669.0,66668.0,1.26840024]
[1722309119278,0.01671576,66669.0,66668.0,1.26840024]
[1722309119703,0.01671576,66669.0,66668.0,1.16751504]
[1722309120067,0.01671576,66669.0,66668.0,1.16451504]
[1722309120896,0.01771576,66669.0,66668.0,1.17551504]
[1722309123335,0.01771576,66669.0,66668.0,0.52962504]
[1722309123558,0.16141576,66669.0,66668.0,0.378992]
[1722309124559,0.20632228,66669.0,66668.0,0.019]
[1722309124684,0.16141576,66669.0,66668.0,0.019]
[1722309124884,0.16141576,66669.0,66668.0,0.138997]
[1722309125085,0.17526538,66669.0,66668.0,0.13917752]
[1722309125324,0.16141576,66669.0,66668.0,0.13917752]
[1722309125500,0.16141576,66669.0,66668.0,0.13117752]
[1722309125501,0.16041576,66669.0,66668.0,0.13117752]
[1722309125686,0.16041576,66669.0,66668.0,0.13417752]
[1722309125881,0.16041576,66669.0,66668.0,0.133997]
[1722309126288,0.16041576,66669.0,66668.0,0.014]
[1722309126289,0.94777589,66669.0,66668.0,0.014]
[1722309126490,1.31391477,66669.0,66668.0,0.014]
[1722309126694,1.06768174,66669.0,66668.0,0.014]
[1722309126902,1.33120347,66669.0,66668.0,0.014]
[1722309127114,1.6190001,66669.0,66668.0,0.014]
[1722309127348,1.7390001,66669.0,66668.0,0.014]
[1722309128102,1.7390001,66669.0,66666.0,2.5]
[1722309128103,0.849993,66667.0,66666.0,2.5]
[1722309128325,1.6867995,66667.0,66666.0,2.5]
[1722309128454,1.43980669,66667.0,66666.0,2.5]
[1722309128659,1.71637059,66667.0,66666.0,2.5]
[1722309128856,1.88796833,66667.0,66666.0,2.5]
[1722309129091,1.885608,66667.0,66666.0,2.5]
[1722309129356,1.865608,66667.0,66666.0,2.5]
[1722309129511,1.72800934,66667.0,66666.0,2.501]
[1722309129911,1.71400934,66667.0,66666.0,2.5]
[1722309130520,1.75753999,66667.0,66666.0,2.5]
[1722309130982,1.90775064,66667.0,66666.0,2.5]
[1722309131362,1.92175064,66667.0,66666.0,2.501]
[1722309131601,1.89821999,66667.0,66666.0,2.501]
[1722309131818,1.72680305,66667.0,66666.0,2.501]
[1722309132196,1.74680305,66667.0,66666.0,2.501]
[1722309132351,1.72680305,66667.0,66666.0,2.501]
[1722309133297,1.74680305,66667.0,66666.0,2.501]
[1722309134988,1.75033383,66667.0,66666.0,2.501]
[1722309135185,1.63973358,66667.0,66666.0,2.501]
[1722309135407,1.73462882,66667.0,66666.0,2.501]
[1722309135608,1.74462882,66667.0,66666.0,2.501]
[1722309135792,1.72462882,66667.0,66666.0,2.501]
[1722309136392,1.75562882,66667.0,66666.0,2.502]
[1722309136596,1.73562882,66667.0,66666.0,2.502]
[1722309137631,0.85500178,66667.0,66666.0,2.502]
[1722309137842,0.16293262,66667.0,66666.0,2.502]
[1722309138042,0.19844408,66667.0,66666.0,2.502]
[1722309138248,0.16154506,66667.0,66666.0,2.502]
[1722309138626,0.24218971,66667.0,66666.0,2.502]
[1722309138858,0.28587792,66667.0,66666.0,2.502]
[1722309139056,0.21866045,66667.0,66666.0,2.502]
[1722309139502,0.28962433,66667.0,66666.0,2.502]
[1722309139674,0.61924567,66667.0,66666.0,2.502]
[1722309139830,0.28962433,66667.0,66666.0,2.502]
[1722309140032,0.37924861,66667.0,66666.0,2.502]
[1722309140264,0.25924961,66667.0,66666.0,2.502]
[1722309140437,0.18828573,66667.0,66666.0,2.502]
[1722309140641,0.21866045,66667.0,66666.0,2.502]
[1722309141290,0.20766045,66667.0,66666.0,2.501]
[1722309141525,0.15790517,66667.0,66666.0,2.501]
[1722309141780,0.24218967,66667.0,66666.0,2.502]
[1722309141987,0.31247591,66667.0,66666.0,2.502]
[1722309142193,0.19247691,66667.0,66666.0,2.502]
[1722309142428,0.31247591,66667.0,66666.0,2.502]
[1722309142643,0.19247691,66667.0,66666.0,2.502]
[1722309143089,0.37856606,66667.0,66666.0,2.502]
[1722309143326,0.28894669,66667.0,66666.0,2.502]
[1722309143728,0.25856706,66667.0,66666.0,2.502]
[1722309143951,0.28894669,66667.0,66666.0,2.502]
[1722309144190,0.16894769,66667.0,66666.0,2.502]
[1722309144615,0.09866145,66667.0,66666.0,2.502]
[1722309144870,0.28862709,66667.0,66666.0,2.502]
[1722309145091,0.37807886,66667.0,66666.0,2.502]
[1722309145355,0.10705798,66667.0,66666.0,2.763101]
[1722309145591,0.03726145,66667.0,66666.0,2.763101]
[1722309145816,0.06980979,66667.0,66666.0,2.763101]
[1722309146367,0.06980979,66667.0,66666.0,2.502]
[1722309146570,0.09333814,66667.0,66666.0,2.502]
[1722309146957,0.10972835,66667.0,66666.0,2.502]
[1722309147156,0.06088395,66667.0,66666.0,2.502]
[1722309147688,0.12809799,66667.0,66666.0,2.502]
[1722309147897,0.06088395,66667.0,66666.0,2.502]
[1722309148307,0.12810308,66667.0,66666.0,2.502]
[1722309148885,0.12810359,66667.0,66666.0,2.502]
[1722309149089,0.06088395,66667.0,66666.0,2.502]
[1722309149316,0.2481065,66667.0,66666.0,2.502]
[1722309149519,0.12810792,66667.0,66666.0,2.502]
[1722309149729,0.10570059,66667.0,66666.0,2.502]
[1722309149937,0.12810892,66667.0,66666.0,2.502]
[1722309150348,0.0939647,66667.0,66666.0,2.502]
[1722309150774,0.12811056,66667.0,66666.0,2.502]
[1722309150991,0.10458145,66667.0,66666.0,2.502]
[1722309151292,0.07048848,66667.0,66666.0,2.502]
[1722309151635,0.14108428,66667.0,66666.0,2.502]
[1722309151834,0.14127051,66667.0,66666.0,2.502]
[1722309152082,0.42368512,66667.0,66666.0,2.502]
[1722309152281,1.31319625,66667.0,66666.0,2.502]
[1722309152484,1.29319625,66667.0,66666.0,2.502]
[1722309152797,1.66764109,66667.0,66666.0,2.502]
[1722309153597,1.53319425,66667.0,66666.0,2.502]
[1722309154294,1.46965636,66667.0,66666.0,2.502]
[1722309154500,1.4461258,66667.0,66666.0,2.502]
[1722309154901,1.43845881,66667.0,66666.0,2.502]
[1722309155260,1.57291556,66667.0,66666.0,2.502]
[1722309155602,1.43845881,66667.0,66666.0,2.502]
[1722309155827,1.57291556,66667.0,66666.0,2.502]
[1722309156099,1.59813667,66667.0,66666.0,2.502]
[1722309156448,1.73259342,66667.0,66666.0,2.502]
[1722309157807,1.75612384,66667.0,66666.0,2.502]
[1722309158142,1.99050804,66667.0,66666.0,2.502]
[1722309158307,1.97963507,66667.0,66666.0,2.502]
[1722309158879,1.95610465,66667.0,66666.0,2.502]
[1722309160232,1.93610465,66667.0,66666.0,2.502]
[1722309160442,1.86075749,66667.0,66666.0,2.502]
[1722309161015,1.88075749,66667.0,66666.0,2.502]
[1722309161216,1.87948679,66667.0,66666.0,2.502]
[1722309161620,1.88301735,66667.0,66666.0,2.502]
[1722309162196,1.85948679,66667.0,66666.0,2.502]
[1722309162747,1.87948679,66667.0,66666.0,2.502]
[1722309162943,1.85948679,66667.0,66666.0,2.502]
[1722309164377,1.77623982,66667.0,66666.0,2.502]
[1722309164557,1.86036755,66667.0,66666.0,2.502]
[1722309164763,1.88036755,66667.0,66666.0,2.502]
[1722309165182,1.88036755,66667.0,66666.0,2.502913]
[1722309165360,1.90389799,66667.0,66666.0,2.502913]
[1722309166048,1.88389799,66667.0,66666.0,2.502913]
[1722309166448,1.86036755,66667.0,66666.0,2.502913]
[1722309166651,2.12036555,66667.0,66666.0,2.502913]
[1722309166845,2.22036555,66667.0,66666.0,2.502913]
[1722309167063,2.33666377,66667.0,66666.0,2.502913]
[1722309167532,2.53555943,66667.0,66666.0,2.502913]
[1722309167752,2.52076157,66667.0,66666.0,2.502913]
[1722309168190,2.14988604,66667.0,66666.0,2.502913]
[1722309168411,2.5239085,66667.0,66666.0,2.502913]
[1722309169743,2.54744051,66667.0,66666.0,2.502913]
[1722309170170,2.54288675,66667.0,66666.0,2.502913]
[1722309170548,2.52888675,66667.0,66666.0,2.501913]
[1722309170867,2.53188675,66667.0,66666.0,2.501913]
[1722309171095,2.54286131,66667.0,66666.0,2.502913]
[1722309172874,1.77196899,66667.0,66666.0,2.502913]
[1722309173051,1.65568372,66667.0,66666.0,2.502913]
[1722309173252,1.45678806,66667.0,66666.0,2.502913]
[1722309173666,1.6085448,66667.0,66666.0,2.502913]
[1722309173865,1.60855059,66667.0,66666.0,2.502913]
[1722309174266,1.46252493,66667.0,66666.0,2.501913]
[1722309174540,1.47690826,66667.0,66666.0,2.501913]
[1722309174716,1.62760258,66667.0,66666.0,2.501913]
[1722309174926,1.61360258,66667.0,66666.0,2.500913]
[1722309175318,1.63360258,66667.0,66666.0,2.500913]
[1722309175742,1.84860258,66667.0,66666.0,2.500913]
[1722309176678,1.83460258,66667.0,66666.0,2.500913]
[1722309177535,1.82629117,66667.0,66666.0,2.500913]
[1722309178234,1.8185432,66667.0,66666.0,2.500913]
[1722309178733,1.8325432,66667.0,66666.0,2.500913]
[1722309179587,1.8125432,66667.0,66666.0,2.500913]
[1722309179784,1.78901119,66667.0,66666.0,2.500913]
[1722309180187,1.80301119,66667.0,66666.0,2.500913]
[1722309180398,1.78901119,66667.0,66666.0,2.500913]
[1722309180693,1.78758576,66667.0,66666.0,2.500913]
[1722309181052,1.0212604,66667.0,66666.0,2.565013]
[1722309181255,0.32628186,66667.0,66666.0,2.565013]
[1722309181451,0.32628186,66667.0,66666.0,2.640513]
[1722309181452,0.12412509,66667.0,66666.0,2.640513]
[1722309181656,0.08638458,66667.0,66666.0,3.000516]
[1722309182044,0.08638458,66667.0,66666.0,2.760514]
[1722309182045,0.07238458,66667.0,66666.0,2.760514]
[1722309182239,0.07238458,66667.0,66666.0,2.640513]
[1722309182448,0.07238458,66667.0,66666.0,2.7620682]
[1722309182651,0.12637358,66667.0,66666.0,2.7620682]
[1722309182893,0.014,66667.0,66666.0,2.760514]
[1722309183316,0.0797854,66667.0,66666.0,2.760514]
[1722309183507,0.0797854,66667.0,66666.0,2.640513]
[1722309184057,0.0937854,66667.0,66666.0,2.640513]
[1722309184432,0.0797854,66667.0,66666.0,2.640513]
[1722309184673,0.11131403,66667.0,66666.0,2.640513]
[1722309184895,0.23131303,66667.0,66666.0,2.640513]
[1722309185102,0.44760187,66667.0,66666.0,2.640513]
[1722309185350,0.38019941,66667.0,66666.0,2.640513]
[1722309185518,0.71438908,66667.0,66666.0,2.641513]
[1722309185792,0.69842193,66667.0,66666.0,2.641513]
[1722309185961,0.69042193,66667.0,66666.0,2.641513]
[1722309186165,0.67616641,66667.0,66666.0,2.640513]
[1722309186546,0.44016841,66667.0,66666.0,2.640513]
[1722309188225,0.46369744,66667.0,66666.0,2.640513]
[1722309188930,0.10370044,66667.0,66666.0,2.760514]
[1722309189224,0.09149803,66667.0,66666.0,2.640513]
[1722309189466,0.09244854,66667.0,66666.0,3.000516]
[1722309189655,0.06891951,66667.0,66666.0,3.63115304]
[1722309189838,0.011,66667.0,66666.0,3.39115104]
[1722309190045,0.011,66667.0,66666.0,3.63115304]
[1722309190250,0.011,66667.0,66666.0,3.39115104]
[1722309191466,0.007,66667.0,66666.0,3.39115104]
[1722309191945,0.011,66667.0,66666.0,3.39115104]
[1722309192176,0.004,66667.0,66666.0,3.39115104]
[1722309192386,0.01571576,66669.0,66668.0,0.738187]
[1722309193124,0.03924223,66669.0,66668.0,0.738187]
[1722309193520,0.01571576,66669.0,66668.0,0.738187]
[1722309194687,0.01671576,66669.0,66668.0,0.738187]
[1722309195739,0.01671576,66669.0,66668.0,1.12881504]
[1722309196148,0.01671576,66669.0,66668.0,1.12917609]
[1722309196350,0.01671576,66669.0,66668.0,1.12881504]
[1722309196522,0.01671576,66669.0,66668.0,1.12917609]
[1722309196726,0.04024008,66669.0,66668.0,1.12881504]
[1722309197640,0.04024008,66669.0,66668.0,1.39181004]
[1722309198196,0.03924008,66669.0,66668.0,1.39217109]
[1722309198620,0.04024008,66669.0,66668.0,1.39181004]
[1722309198822,0.04324008,66669.0,66668.0,1.39217109]
[1722309199023,0.04224008,66669.0,66668.0,1.40077539]
[1722309199226,0.04224008,66669.0,66668.0,1.40113644]